bitfinex/quotes_SOLUSD_20240613
["timestamp","ask_amount","ask_price","bid_price","bid_amount"]
[1718314146681,45.17,146.36,146.28,22.437]
[1718314146983,7.83,146.35,146.29,7.83]
[1718314147863,7.83,146.34,146.29,7.83]
[1718314148482,7.83,146.35,146.29,10.3592]
[1718314149508,7.83,146.34,146.29,7.83]
[1718314149700,7.83,146.34,146.29,10.3592]
[1718314150305,7.83,146.35,146.29,10.3592]
[1718314153918,7.83,146.33,146.28,2.5293]
[1718314154286,7.83,146.33,146.25,5.0596]
[1718314154486,7.83,146.33,146.27,7.83]
[1718314155391,7.83,146.34,146.28,7.83]
[1718314155588,7.83,146.35,146.29,16.9434]
[1718314159413,253.1,146.4,146.29,14.4143]
[1718314159586,7.83,146.35,146.29,16.9434]
[1718314160308,7.66333334,146.35,146.29,16.9434]
[1718314165434,45.17,146.39,146.29,16.9434]
[1718314165645,7.83,146.35,146.29,16.9434]
[1718314167005,7.83,146.35,146.29,9.1134]
[1718314167205,7.83,146.35,146.29,16.9434]
[1718314169343,7.83,146.35,146.29,9.1134]
[1718314169522,7.83,146.35,146.29,16.9434]
[1718314172536,7.83,146.36,146.3,10.359]
[1718314174740,7.83,146.36,146.29,9.1134]
[1718314174914,7.83,146.36,146.3,7.83]
[1718314185955,7.83,146.37,146.31,7.83]
[1718314186133,7.83,146.37,146.31,23.1594]
[1718314186339,7.83,146.37,146.31,25.6882]
[1718314187233,7.83,146.37,146.31,23.1594]
[1718314190846,45.17,146.39,146.31,23.1594]
[1718314191042,7.83,146.38,146.32,7.83]
[1718314192561,45.0,146.39,146.32,7.83]
[1718314192761,7.83,146.38,146.32,7.83]
[1718314195072,7.83,146.38,146.31,15.3294]
[1718314195242,7.83,146.38,146.32,7.83]
[1718314196564,45.0,146.39,146.32,7.83]
[1718314196762,7.83,146.38,146.32,7.83]
[1718314199968,45.0,146.39,146.32,7.83]
[1718314200274,51.00811822,146.44,146.33,6.1424]
[1718314200474,7.83,146.4,146.34,7.83]
[1718314201651,45.17,146.43,146.34,7.83]
[1718314201849,7.83,146.4,146.33,6.1424]
[1718314202555,7.83,146.39,146.33,6.1424]
[1718314202970,7.83,146.39,146.33,8.6709]
[1718314207560,7.83,146.39,146.34,2.5283]
[1718314208085,7.83,146.38,146.33,6.1424]
[1718314208384,7.83,146.37,146.33,6.1424]
[1718314208586,7.83,146.37,146.33,8.6708]
[1718314208804,7.83,146.38,146.33,8.6708]
[1718314209290,45.17,146.43,146.33,8.6708]
[1718314209472,7.83,146.38,146.33,8.6708]
[1718314210369,7.83,146.38,146.34,2.5283]
[1718314210583,7.83,146.39,146.34,2.5283]
[1718314210880,31.32,146.44,146.34,2.5282]
[1718314211085,7.83,146.39,146.34,2.5282]
[1718314212983,31.32,146.44,146.35,2.5281]
[1718314213181,7.83,146.39,146.35,2.5281]
[1718314213483,7.83,146.4,146.35,2.5281]
[1718314213889,45.17,146.43,146.35,2.5281]
[1718314214065,7.83,146.4,146.35,18.8268]
[1718314215764,45.17,146.43,146.35,18.8268]
[1718314215972,7.83,146.4,146.35,18.8268]
[1718314218078,45.17,146.43,146.35,18.8268]
[1718314218267,7.83,146.4,146.35,18.8268]
[1718314225500,7.83,146.4,146.35,16.2987]
[1718314228293,7.83,146.4,146.35,18.8267]
[1718314232602,7.83,146.4,146.36,2.5279]
[1718314232994,7.83,146.4,146.35,18.8267]
[1718314237900,7.83,146.4,146.35,16.2987]
[1718314239010,0.17,146.43,146.35,16.2987]
[1718314239011,7.83,146.38,146.35,16.2987]
[1718314239395,7.83,146.39,146.35,16.2987]
[1718314239702,7.83,146.39,146.35,18.8268]
[1718314240203,7.83,146.4,146.35,18.8268]
[1718314240396,7.83,146.39,146.35,18.8268]
[1718314240609,100.17,146.43,146.35,16.2987]
[1718314240811,7.83,146.36,146.35,16.2987]
[1718314241117,7.83,146.36,146.33,6.1424]
[1718314241305,100.17,146.43,146.33,6.1424]
[1718314241614,7.83,146.38,146.33,8.6709]
[1718314242421,7.83,146.37,146.33,8.6709]
[1718314243115,7.83,146.37,146.34,2.5283]
[1718314243424,7.83,146.38,146.34,2.5283]
[1718314245818,7.83,146.38,146.33,8.6708]
[1718314247603,45.0,146.42,146.34,2.5283]
[1718314247804,7.83,146.38,146.34,2.5283]
[1718314251720,7.83,146.38,146.33,6.1424]
[1718314251927,7.83,146.39,146.33,6.1424]
[1718314252107,45.0,146.38,146.33,6.1424]
[1718314253624,45.0,146.38,146.33,8.6708]
[1718314253927,51.00559723,146.44,146.34,2.5283]
[1718314254234,7.83,146.4,146.34,10.3583]
[1718314254927,7.83,146.4,146.35,2.5281]
[1718314255333,269.1109121,146.45,146.34,12.8865]
[1718314255530,7.83,146.41,146.36,2.5279]
[1718314255735,269.1109121,146.45,146.36,2.5279]
[1718314255943,7.83,146.41,146.35,10.358]
[1718314257945,253.9238121,146.45,146.38,2.5276]
[1718314258110,253.9238121,146.45,146.38,10.3576]
[1718314258511,7.83,146.44,146.39,2.5273]
[1718314258944,7.83,146.43,146.39,2.5273]
[1718314259310,253.9238121,146.45,146.39,2.5273]
[1718314259536,7.83,146.43,146.39,2.5273]
[1718314260346,253.9238121,146.45,146.38,2.5275]
[1718314260528,45.0,146.44,146.38,10.3575]
[1718314260729,45.0,146.44,146.38,2.5275]
[1718314261030,253.9238121,146.45,146.38,2.5275]
[1718314261234,7.83,146.44,146.39,2.5274]
[1718314261431,253.9238121,146.45,146.39,2.5274]
[1718314261621,7.83,146.44,146.39,2.5274]
[1718314261936,253.9238121,146.45,146.39,2.5274]
[1718314262342,7.83,146.44,146.39,2.5274]
[1718314262752,7.83,146.43,146.38,2.5275]
[1718314263450,7.83,146.44,146.38,2.5275]
[1718314263627,7.83,146.44,146.38,10.3575]
[1718314265125,7.83,146.44,146.39,2.5274]
[1718314267162,7.83,146.42,146.37,6.0937]
[1718314267447,7.83,146.41,146.37,6.0937]
[1718314268860,7.83,146.4,146.37,6.0937]
[1718314269752,45.0,146.43,146.37,6.0937]
[1718314269955,7.83,146.41,146.37,6.0937]
[1718314277955,7.83,146.41,146.37,8.6215]
[1718314278652,7.83,146.41,146.37,6.0937]
[1718314281049,7.83,146.42,146.37,6.0937]
[1718314284171,45.0,146.43,146.37,6.0937]
[1718314284457,7.83,146.42,146.37,6.0937]
[1718314284651,52.83,146.43,146.37,13.9237]
[1718314285247,45.0,146.43,146.37,13.9237]
[1718314285562,7.83,146.42,146.37,13.9237]
[1718314287767,0.8238121,146.45,146.37,13.9237]
[1718314287966,0.8238121,146.45,146.37,16.4514]
[1718314288269,7.83,146.43,146.38,2.5276]
[1718314288866,7.83,146.43,146.37,16.4514]
[1718314289968,0.8238121,146.45,146.38,2.5276]
[1718314290163,7.83,146.44,146.38,10.3576]
[1718314291064,0.8238121,146.45,146.38,10.3576]
[1718314291456,7.83,146.44,146.38,10.3576]
[1718314294167,7.83,146.44,146.39,2.5274]
[1718314299865,7.83,146.44,146.38,10.3575]
[1718314301875,0.8238121,146.45,146.39,24.1202]
[1718314302072,7.83,146.44,146.39,24.1202]
[1718314303678,0.8238121,146.45,146.39,29.4228]
[1718314303976,0.8238121,146.45,146.4,10.3571]
[1718314305277,0.8238121,146.45,146.4,7.83]
[1718314305656,0.8238121,146.45,146.41,7.83]
[1718314306075,0.8238121,146.45,146.43,16.0764]
[1718314307668,0.8238121,146.45,146.43,18.6032]
[1718314308170,0.8238121,146.45,146.43,24.9962]
[1718314308371,0.8238121,146.45,146.43,32.8262]
[1718314311798,0.8238121,146.45,146.44,2.5266]
[1718314312587,0.8238121,146.45,146.44,10.3566]
[1718314314185,0.8238121,146.45,146.44,2.5266]
[1718314314491,0.8238121,146.45,146.44,10.3566]
[1718314318189,0.8238121,146.45,146.44,5.3566]
[1718314319094,0.8238121,146.45,146.43,22.4694]
[1718314319394,0.8238121,146.45,146.44,7.83]
[1718314321391,0.8238121,146.45,146.42,0.51]
[1718314321696,0.8238121,146.45,146.43,7.83]
[1718314322797,0.8238121,146.45,146.44,7.83]
[1718314325697,0.8238121,146.45,146.42,16.8318]
[1718314326003,0.8238121,146.45,146.44,7.83]
[1718314331102,0.8238121,146.45,146.44,14.4754]
[1718314331299,22.8324,146.54,146.44,42.8154]
[1718314331483,7.83,146.53,146.48,7.83]
[1718314332203,22.8324,146.54,146.48,7.83]
[1718314332401,7.83,146.53,146.48,7.83]
[1718314332985,24.0977,146.54,146.46,16.4919]
[1718314333185,24.0977,146.54,146.49,7.83]
[1718314333389,7.83,146.53,146.48,7.83]
[1718314333693,24.0977,146.54,146.48,7.83]
[1718314334805,16.2677,146.54,146.48,7.83]
[1718314335214,24.0977,146.54,146.49,7.83]
[1718314335406,24.0977,146.54,146.48,7.83]
[1718314335707,16.2677,146.54,146.48,7.83]
[1718314335900,24.0977,146.54,146.48,7.83]
[1718314336734,7.83,146.54,146.48,7.83]
[1718314337022,7.83,146.57,146.51,7.83]
[1718314337227,253.1,146.58,146.51,7.83]
[1718314337686,7.83,146.57,146.48,6.5061]
[1718314337892,7.83,146.57,146.51,7.83]
[1718314338091,7.83,146.56,146.51,7.83]
[1718314338511,253.1,146.58,146.51,7.83]
[1718314338714,7.83,146.57,146.51,7.83]
[1718314339209,253.1,146.58,146.51,7.83]
[1718314339397,7.83,146.57,146.51,7.83]
[1718314339605,7.83,146.57,146.52,7.83]
[1718314340115,253.1,146.58,146.52,7.83]
[1718314340322,7.83,146.57,146.52,7.83]
[1718314341193,253.1,146.58,146.52,7.83]
[1718314341594,7.83,146.57,146.52,7.83]
[1718314342316,253.1,146.58,146.48,6.5061]
[1718314342616,7.83,146.57,146.52,7.83]
[1718314342913,253.1,146.58,146.52,7.83]
[1718314343093,260.93,146.58,146.49,20.17]
[1718314343292,260.93,146.58,146.52,7.83]
[1718314343509,253.1,146.58,146.52,7.83]
[1718314343719,253.1,146.58,146.53,7.83]
[1718314343922,253.1,146.58,146.54,7.83]
[1718314344704,253.1,146.58,146.55,7.83]
[1718314348645,0.8238121,146.6,146.55,7.83]
[1718314348853,0.8238121,146.6,146.56,7.83]
[1718314349015,0.8238121,146.6,146.57,7.83]
[1718314353221,0.8238121,146.6,146.54,15.0443]
[1718314353436,0.8238121,146.6,146.56,7.83]
[1718314353827,0.8238121,146.6,146.58,7.83]
[1718314355629,0.8238121,146.6,146.57,7.83]
[1718314356751,0.8238121,146.6,146.58,7.83]
[1718314360233,0.8238121,146.6,146.59,7.83]
[1718314361337,0.8238121,146.6,146.55,20.0]
[1718314361564,0.8238121,146.6,146.59,7.83]
[1718314362067,0.8238121,146.6,146.56,0.51]
[1718314362365,0.8238121,146.6,146.59,7.83]
[1718314362657,0.8238121,146.6,146.56,0.51]
[1718314362956,0.8238121,146.6,146.59,7.83]
[1718314363649,0.8238121,146.6,146.56,0.51]
[1718314363949,0.8238121,146.6,146.59,7.83]
[1718314385507,0.8238121,146.6,146.56,0.51]
[1718314385717,0.8238121,146.6,146.59,7.83]
[1718314388315,0.8238121,146.6,146.56,0.51]
[1718314388617,0.8238121,146.6,146.59,7.83]
[1718314394633,7.83,146.67,146.59,7.83]
[1718314394634,5.6766121,146.67,146.59,7.83]
[1718314394809,5.6766121,146.67,146.61,7.83]
[1718314395603,7.83,146.66,146.61,7.83]
[1718314397615,7.83,146.67,146.61,7.83]
[1718314397818,15.2272,146.68,146.61,7.83]
[1718314398032,52.83,146.67,146.61,7.83]
[1718314398830,7.83,146.66,146.6,7.83]
[1718314400336,52.83,146.67,146.61,7.83]
[1718314402140,45.0,146.67,146.61,7.83]
[1718314402344,52.83,146.67,146.61,7.83]
[1718314406326,45.0,146.67,146.61,7.83]
[1718314406630,52.83,146.67,146.61,7.83]
[1718314408746,52.83,146.67,146.6,7.83]
[1718314409158,52.83,146.67,146.58,16.2624]
[1718314409359,52.83,146.67,146.6,7.83]
[1718314416064,15.2272,146.68,146.6,7.83]
[1718314416274,15.2272,146.68,146.58,16.2624]
[1718314416275,15.2272,146.68,146.61,7.83]
[1718314416461,23.0572,146.68,146.61,7.83]
[1718314417154,15.2272,146.68,146.61,7.83]
[1718314417364,23.0572,146.68,146.61,7.83]
[1718314417967,7.83,146.67,146.61,7.83]
[1718314419676,7.83,146.7,146.64,7.83]
[1718314419884,7.83,146.7,146.65,7.83]
[1718314420080,7.83,146.7,146.62,22.568]
[1718314420081,7.83,146.7,146.64,7.83]
[1718314420276,100.8238121,146.74,146.64,7.83]
[1718314420486,7.83,146.7,146.65,7.83]
[1718314425689,7.83,146.71,146.65,7.83]
[1718314427770,7.83,146.72,146.66,7.83]
[1718314431989,7.83,146.71,146.65,7.83]
[1718314432695,0.8238121,146.74,146.67,7.83]
[1718314432985,0.8238121,146.74,146.66,7.83]
[1718314432986,7.83,146.72,146.66,7.83]
[1718314433161,45.8238121,146.74,146.66,7.83]
[1718314433360,7.83,146.72,146.66,7.83]
[1718314434088,7.83,146.73,146.67,7.83]
[1718314434580,45.8238121,146.74,146.67,7.83]
[1718314435107,8.6538121,146.74,146.68,30.2852]
[1718314437128,7.83,146.73,146.68,30.2852]
[1718314437282,0.8238121,146.74,146.68,30.2852]
[1718314437478,7.83,146.73,146.68,30.2852]
[1718314439185,0.8238121,146.74,146.68,30.2852]
[1718314439586,7.83,146.73,146.68,30.2852]
[1718314440188,0.8238121,146.74,146.68,30.2852]
[1718314440489,7.83,146.73,146.68,30.2852]
[1718314441289,7.83,146.73,146.68,22.4552]
[1718314441489,7.83,146.73,146.68,30.2852]
[1718314441686,7.83,146.73,146.68,22.4552]
[1718314441927,7.83,146.72,146.68,22.4552]
[1718314442299,0.8238121,146.74,146.68,22.4552]
[1718314442908,7.83,146.73,146.68,22.4552]
[1718314443099,0.8238121,146.74,146.68,22.4552]
[1718314443310,7.83,146.73,146.68,22.4552]
[1718314443519,0.8238121,146.74,146.68,22.4552]
[1718314443991,7.83,146.73,146.68,22.4552]
[1718314444512,0.8238121,146.74,146.68,22.4552]
[1718314444714,7.83,146.73,146.68,30.2852]
[1718314445314,0.8238121,146.74,146.68,30.2852]
[1718314445703,8.6538121,146.74,146.68,30.2852]
[1718314447594,8.6538121,146.74,146.68,22.4552]
[1718314447595,7.83,146.73,146.68,22.4552]
[1718314448295,7.83,146.73,146.68,16.4243]
[1718314448505,7.83,146.72,146.68,16.4243]
[1718314450013,7.83,146.73,146.68,16.4243]
[1718314450217,0.8238121,146.74,146.68,16.4243]
[1718314450391,7.83,146.73,146.68,16.4243]
[1718314451216,0.8238121,146.74,146.68,16.4243]
[1718314451397,7.83,146.73,146.68,16.4243]
[1718314452506,7.83,146.72,146.68,16.4243]
[1718314453320,0.8238121,146.74,146.68,16.4243]
[1718314453541,7.83,146.72,146.68,16.4243]
[1718314454838,0.8238121,146.74,146.68,16.4243]
[1718314455007,7.83,146.72,146.68,16.4243]
[1718314455934,7.83,146.73,146.68,16.4243]
[1718314456139,45.0,146.72,146.68,16.4243]
[1718314456321,7.83,146.73,146.68,16.4243]
[1718314457026,0.8238121,146.74,146.68,24.2543]
[1718314457339,7.83,146.72,146.68,16.4243]
[1718314457514,0.8238121,146.74,146.68,16.4243]
[1718314457822,7.83,146.72,146.68,16.4243]
[1718314458303,0.8238121,146.74,146.68,16.4243]
[1718314458811,7.83,146.72,146.68,16.4243]
[1718314459014,7.83,146.73,146.68,16.4243]
[1718314459397,7.83,146.72,146.68,16.4243]
[1718314459905,7.83,146.73,146.68,16.4243]
[1718314460307,7.83,146.72,146.68,16.4243]
[1718314461237,0.8238121,146.74,146.68,16.4243]
[1718314461424,7.83,146.72,146.68,16.4243]
[1718314461823,0.8238121,146.74,146.68,16.4243]
[1718314462128,7.83,146.72,146.68,16.4243]
[1718314462640,8.6538121,146.74,146.68,24.2543]
[1718314463434,8.6538121,146.74,146.68,30.3666]
[1718314463806,0.8238121,146.74,146.68,30.3666]
[1718314464033,0.8238121,146.74,146.69,7.83]
[1718314464236,0.8238121,146.74,146.68,30.3666]
[1718314464453,8.6538121,146.74,146.69,7.83]
[1718314464674,0.8238121,146.74,146.69,7.83]
[1718314464974,8.6538121,146.74,146.68,30.3666]
[1718314465155,0.8238121,146.74,146.68,30.3666]
[1718314465351,8.6538121,146.74,146.68,30.3666]
[1718314466045,0.8238121,146.74,146.68,22.5366]
[1718314466252,0.8238121,146.74,146.69,7.83]
[1718314468357,0.8238121,146.74,146.7,7.83]
[1718314468666,0.8238121,146.74,146.71,15.5801]
[1718314469441,0.8238121,146.74,146.71,23.4101]
[1718314469646,0.8238121,146.74,146.72,6.0421]
[1718314471378,0.8238121,146.74,146.72,13.8721]
[1718314471969,0.8238121,146.74,146.72,6.0421]
[1718314474346,0.8238121,146.74,146.72,13.8721]
[1718314475041,0.8238121,146.74,146.72,6.0421]
[1718314478166,0.8238121,146.74,146.73,8.0]
[1718314478372,253.1,146.82,146.73,23.9244]
[1718314478534,7.83,146.81,146.75,7.83]
[1718314478731,15.9056,146.86,146.75,7.83]
[1718314478933,7.83,146.81,146.75,7.83]
[1718314481374,7.83,146.8,146.74,7.83]
[1718314481968,7.11324047,146.87,146.76,15.2699]
[1718314482160,7.83,146.83,146.77,7.83]
[1718314482368,7.83,146.83,146.76,15.2699]
[1718314482574,7.83,146.83,146.78,7.83]
[1718314482773,7.83,146.83,146.77,7.83]
[1718314484055,31.32,146.86,146.77,7.83]
[1718314484263,7.83,146.83,146.77,7.83]
[1718314485793,7.83,146.83,146.76,15.2699]
[1718314485974,7.83,146.83,146.77,7.83]
[1718314486494,31.32,146.86,146.77,7.83]
[1718314486781,261.03611066,146.89,146.78,21.4183]
[1718314486983,7.83,146.85,146.79,7.83]
[1718314487365,7.83,146.84,146.78,29.2483]
[1718314488266,253.9238121,146.89,146.8,7.83]
[1718314488472,7.83,146.86,146.8,7.83]
[1718314488868,0.8238121,146.89,146.81,7.83]
[1718314489192,7.83,146.87,146.82,15.6014]
[1718314489376,0.8238121,146.89,146.82,23.4314]
[1718314489895,7.83,146.88,146.82,23.4314]
[1718314490082,0.8238121,146.89,146.82,23.4314]
[1718314490391,7.83,146.88,146.83,14.3237]
[1718314490888,8.6538121,146.89,146.83,14.3237]
[1718314491193,0.8238121,146.89,146.83,14.3237]
[1718314491400,7.83,146.88,146.83,14.3237]
[1718314491586,0.8238121,146.89,146.83,14.3237]
[1718314491783,8.6538121,146.89,146.83,14.3237]
[1718314492164,8.6538121,146.89,146.83,6.4937]
[1718314492888,0.8238121,146.89,146.83,6.4937]
[1718314493072,8.6538121,146.89,146.83,6.4937]
[1718314494281,0.8238121,146.89,146.83,6.4937]
[1718314495702,0.8238121,146.89,146.85,23.2595]
[1718314495902,0.8238121,146.89,146.86,7.83]
[1718314497381,0.8238121,146.89,146.87,27.83]
[1718314499202,0.8238121,146.89,146.88,8.0]
[1718314499777,0.8238121,146.89,146.88,0.17]
[1718314500290,235.9231592,146.95,146.88,8.0]
[1718314500494,16.2574,146.97,146.88,0.17]
[1718314500696,7.83,146.94,146.88,8.0]
[1718314502389,7.83,146.94,146.88,14.5098]
[1718314502603,7.83,146.93,146.88,14.5098]
[1718314503108,7.83,146.93,146.88,6.6798]
[1718314503612,7.83,146.93,146.88,14.5098]
[1718314503991,7.83,146.93,146.88,6.5098]
[1718314504193,7.83,146.93,146.88,14.3398]
[1718314504720,7.83,146.92,146.88,6.5098]
[1718314506989,7.83,146.93,146.88,6.5098]
[1718314507311,46.6552,147.0,146.88,6.5098]
[1718314507489,7.83,146.93,146.88,6.5098]
[1718314509615,7.83,146.94,146.88,14.3398]
[1718314514191,145.17,146.99,146.88,14.3398]
[1718314514417,145.17,146.99,146.89,15.2999]
[1718314514618,7.83,146.94,146.89,15.2999]
[1718314514923,7.83,146.94,146.89,23.1299]
[1718314516937,145.17,146.99,146.89,23.1299]
[1718314517105,7.83,146.95,146.89,23.1299]
[1718314518428,145.17,146.99,146.89,23.1299]
[1718314518615,7.83,146.95,146.89,23.1299]
[1718314519747,46.6552,147.0,146.89,23.1299]
[1718314519748,7.83,146.96,146.9,7.83]
[1718314520603,7.83,146.96,146.92,16.0685]
[1718314522507,31.32,147.0,146.92,16.0685]
[1718314522708,7.83,146.96,146.92,16.0685]
[1718314524020,7.83,146.97,146.92,16.0685]
[1718314524229,7.83,146.95,146.92,16.0685]
[1718314524439,7.83,146.93,146.88,16.0944]
[1718314524622,7.83,146.92,146.88,16.0944]
[1718314525445,7.83,146.93,146.88,16.0944]
[1718314526650,45.0,146.99,146.88,16.0944]
[1718314526953,7.83,146.94,146.88,23.9244]
[1718314527640,7.83,146.94,146.88,16.0944]
[1718314527847,7.83,146.93,146.88,16.0944]
[1718314528736,7.83,146.94,146.88,23.9244]
[1718314528946,7.83,146.94,146.88,16.0944]
[1718314529127,7.83,146.93,146.88,16.0944]
[1718314530350,100.0,146.98,146.88,16.0944]
[1718314530549,7.83,146.93,146.88,23.9244]
[1718314530750,7.83,146.93,146.88,16.0944]
[1718314531253,45.17,146.97,146.88,23.9244]
[1718314531456,7.83,146.94,146.88,16.0944]
[1718314531753,7.83,146.93,146.88,23.9244]
[1718314532646,7.83,146.94,146.88,23.9244]
[1718314532870,45.17,146.97,146.88,23.9244]
[1718314533065,7.83,146.94,146.88,23.9244]
[1718314534844,7.83,146.94,146.88,16.0944]
[1718314535044,7.83,146.94,146.88,23.9244]
[1718314538756,45.0,146.98,146.88,23.9244]
[1718314538956,7.83,146.95,146.89,7.83]
[1718314539365,7.83,146.94,146.88,23.9244]
[1718314539567,7.83,146.94,146.88,16.0944]
[1718314539784,7.83,146.94,146.88,23.9244]
[1718314541662,7.83,146.94,146.88,16.0944]
[1718314541863,7.83,146.93,146.88,16.0944]
[1718314544795,7.83,146.96,146.9,7.83]
[1718314544994,27.59344545,147.01,146.91,15.3881]
[1718314545158,7.83,146.96,146.91,15.3881]
[1718314547781,7.83,146.95,146.91,15.3881]
[1718314547979,7.83,146.96,146.91,15.3881]
[1718314550591,31.32,147.0,146.91,15.3881]
[1718314550767,7.83,146.96,146.91,15.3881]
[1718314551964,7.83,146.95,146.91,15.3881]
[1718314552268,7.83,146.96,146.91,15.3881]
[1718314554497,7.83,146.97,146.91,15.3881]
[1718314555399,22.242,147.01,146.91,15.3881]
[1718314555604,45.17,147.0,146.91,15.3881]
[1718314555797,7.83,146.97,146.91,15.3881]
[1718314557612,76.49,147.0,146.91,15.3881]
[1718314557912,7.83,146.95,146.91,15.3881]
[1718314560776,7.83,146.94,146.91,15.3881]
[1718314568013,76.49,147.0,146.91,15.3881]
[1718314568311,7.83,146.94,146.91,15.3881]
[1718314570210,76.49,147.0,146.91,15.3881]
[1718314570503,7.83,146.94,146.91,15.3881]
[1718314571914,100.0,146.97,146.88,15.6227]
[1718314572104,7.83,146.91,146.88,15.6227]
[1718314572712,7.83,146.92,146.88,15.6227]
[1718314572897,7.83,146.91,146.88,15.6227]
[1718314573084,7.83,146.92,146.88,15.6227]
[1718314578714,7.83,146.92,146.86,14.0412]
[1718314578918,7.83,146.91,146.86,6.2112]
[1718314579217,7.83,146.92,146.86,6.2112]
[1718314579425,7.83,146.91,146.86,6.2112]
[1718314582221,7.83,146.92,146.86,14.0412]
[1718314583018,7.83,146.92,146.86,6.2112]
[1718314583516,7.83,146.92,146.86,14.0412]
[1718314583915,7.83,146.92,146.86,6.2112]
[1718314584211,7.83,146.92,146.86,14.0412]
[1718314584415,7.83,146.92,146.86,6.2112]
[1718314584716,7.83,146.92,146.86,14.0412]
[1718314586005,7.83,146.92,146.86,6.2112]
[1718314586315,7.83,146.92,146.86,14.0412]
[1718314586623,7.83,146.91,146.86,6.2112]
[1718314590706,7.83,146.9,146.86,6.2112]
[1718314590914,7.83,146.89,146.86,6.2112]
[1718314592824,7.83,146.9,146.86,6.2112]
[1718314593201,7.83,146.89,146.86,6.2112]
[1718314593728,7.83,146.88,146.86,6.2112]
[1718314593929,7.83,146.89,146.86,6.2112]
[1718314595531,15.3375,146.96,146.86,6.2112]
[1718314595821,7.83,146.91,146.86,6.2112]
[1718314596727,12.41703036,146.97,146.86,14.0412]
[1718314596916,7.83,146.93,146.87,7.83]
[1718314597234,7.83,146.93,146.88,16.2981]
[1718314600133,7.83,146.92,146.88,16.2981]
[1718314601720,7.83,146.91,146.88,16.2981]
[1718314601914,7.83,146.92,146.88,16.2981]
[1718314607522,7.83,146.91,146.88,16.2981]
[1718314613927,7.83,146.92,146.88,16.2981]
[1718314616454,7.83,146.91,146.88,16.2981]
[1718314616830,7.83,146.92,146.88,16.2981]
[1718314619234,7.83,146.93,146.88,16.2981]
[1718314620351,16.0864,146.98,146.88,16.2981]
[1718314620651,7.83,146.93,146.88,16.2981]
[1718314625857,7.83,146.92,146.88,16.2981]
[1718314630665,7.83,146.9,146.88,16.2981]
[1718314631748,7.83,146.91,146.88,16.2981]
[1718314635880,7.83,146.92,146.88,16.2981]
[1718314637183,45.17,146.97,146.88,16.2981]
[1718314637490,7.83,146.91,146.88,16.2981]
[1718314637849,45.17,146.97,146.88,16.2981]
[1718314638089,7.83,146.91,146.88,16.2981]
[1718314638484,7.83,146.92,146.88,16.2981]
[1718314638689,45.17,146.97,146.88,16.2981]
[1718314638895,7.83,146.92,146.88,16.2981]